Cogmind - Beta 9.1 *** ADVENTURER MODE // 2019.10.29 @ 16:43:44 // Halloween2019/Abominations Player: Ms Vella Result: Core destroyed Performance ------------- Evolutions (0) 0 Regions Visited (1) 200 Robots Destroyed (9) 45 Value Destroyed (488) 488 Prototype IDs (0) 0 Alien Tech Used (0) 0 Bonus (0) 0 TOTAL SCORE: 733 Bonus ------- None Cogmind --------- Core Integrity 0/250 Matter 240/300 Energy 45/100 System Corruption 0% Temperature Cool (0) Location -10/Materials Parts ------- Power (1) Propulsion (2) Light Treads Light Treads Utility (2) Small Storage Unit Light Armor Plating Weapon (2) Assault Rifle Light Assault Rifle Inventory (6) Aluminum Leg Aluminum Leg Small Storage Unit Signal Interpreter Peak State ------------ Power Light Ion Engine Propulsion Light Treads Light Treads Utility Small Storage Unit Small Storage Unit Weapon Small Laser Assault Rifle Inventory Ion Engine Aluminum Leg Aluminum Leg Signal Interpreter Medium Laser [Rating: 7] Favorites ----------- Power Light Ion Engine Engine Light Ion Engine Propulsion Light Treads Treads Light Treads Leg Aluminum Leg Utility Small Storage Unit Storage Small Storage Unit Protection Light Armor Plating Weapon Assault Rifle Energy Gun Small Laser Energy Cannon Beam Cannon Ballistic Gun Assault Rifle Build | -11 -10 ------- Run | Scr Mat Slots Evolved . | . . Power . | . . Propulsion . | . . Utility . | . . Weapon . | . . Parts Attached 13 | 2 11 Power 1 | . 1 Engine 1 | . 1 Core . | . . Reactor . | . . Propulsion 4 | 2 2 Treads 4 | 2 2 Leg . | . . Wheel . | . . Hover . | . . Flight . | . . Utility 2 | . 2 Device . | . . Storage 1 | . 1 Processor . | . . Hackware . | . . Protection 1 | . 1 Artifact . | . . Weapon 6 | . 6 Energy Gun 1 | . 1 Energy Cannon 2 | . 2 Ballistic Gun 3 | . 3 Ballistic Cannon . | . . Launcher . | . . Special Weapon . | . . Impact Weapon . | . . Slashing Weapon . | . . Piercing Weapon . | . . Special Melee Weapon . | . . Unidentified Prototypes . | . . Parts Lost 6 | . 6 Power 2 | . 2 Propulsion 1 | . 1 Utility . | . . Weapon 3 | . 3 Highest Loss Streak 4 | . 4 Average Slot Usage (%) 91 | . 91 Engine 13 | . 13 Treads 27 | . 27 Storage 23 | . 23 Energy Gun 7 | . 7 Energy Cannon 8 | . 8 Ballistic Gun 10 | . 10 Naked Turns . | . . Heaviest Build 19 | 10 19 Greatest Support 40 | 40 40 Greatest Overweight (x) . | . . Average Overweight (x) . | . . Largest Inventory Capacity 8 | 6 8 Average Capacity 7 | 6 7 Most Carried 8 | 6 8 Average Carried 6 | 5 6 Final Capacity 6 | 6 6 Final Carried 4 | 4 4 Class Distribution -------------------- 100% | Mutant Dominant Class ---------------- Mutant | -10/Materials Resources | -11 -10 ----------- Run | Scr Mat Matter Collected 342 | 186 156 Remotely . | . . Salvage Created 408 | . 408 Parts 28 | . 28 Haulers Intercepted . | . . Recyclers Shooed . | . . Parts Field Recycled . | . . Retrieved Matter . | . . Parts Self-Destructed . | . . Prevented . | . . Kills | -11 -10 ------- Run | Scr Mat Combat Hostiles Destroyed 9 | . 9 Guns 7 | . 7 Cannons 2 | . 2 Classes Destroyed 2 | . 2 Grunt 2 | . 2 Abomination 7 | . 7 Best Kill Streak 2 | . 2 Combat Bots Only 2 | . 2 Max Kills in Single Turn 1 | . 1 Gunslinging . | . . Exploded . | . . Melee . | . . Uniques/NPCs Destroyed . | . . Combat | -11 -10 -------- Run | Scr Mat Damage Taken 1101 | . 1101 Core 283 | . 283 Absorbed by Shields . | . . Core Remaining (%) 100 | 100 . Volleys Fired 41 | . 41 Largest 2 | . 2 Hottest 120 | . 120 Shots Fired 72 | . 72 Gun 55 | . 55 Cannon 17 | . 17 Launcher . | . . Special . | . . Kinetic 34 | . 34 Thermal 31 | . 31 Explosive . | . . Electromagnetic 7 | . 7 Robot Hit Streak 52 | . 52 Robot Miss Streak 3 | . 3 Penetration Max . | . . Secondary Targets . | . . Shots Hit Robots 65 | . 65 Core Hits 23 | . 23 Critical Hits . | . . Critical Kills . | . . Critical Parts Destroyed . | . . Melee Attacks . | . . Impact . | . . Slashing . | . . Piercing . | . . Sneak Attacks . | . . Combat Hostiles . | . . Follow-up Attacks . | . . Damage Inflicted 828 | . 828 Guns 563 | . 563 Cannons 265 | . 265 Explosions . | . . Melee . | . . Ramming . | . . Kinetic 372 | . 372 Thermal 437 | . 437 Explosive . | . . Electromagnetic 19 | . 19 Impact . | . . Slashing . | . . Piercing . | . . Highest Corruption . | . . Average Corruption . | . . Corruption Purged . | . . Overload Shots . | . . Overflow Damage 20 | . 20 Projectiles 20 | . 20 Explosions . | . . Melee . | . . Knockbacks . | . . Impact . | . . Kinetic . | . . Secondary . | . . Self-Inflicted Damage . | . . Shots . | . . Rammed . | . . Targets Rammed . | . . Kicked . | . . Crushed . | . . Highest Temperature 220 | . 220 Average Temperature 63 | . 63 Received Heat Transfer 201 | . 201 Siege Activations . | . . Robots Corrupted . | . . Combat Hostiles . | . . Parts Fried . | . . Impact Corruptions . | . . Robots Melted . | . . Combat Hostiles . | . . Parts Melted . | . . Heat Transferred 364 | . 364 Parts Sabotaged . | . . Parts Stolen . | . . Parts Stripped . | . . Power Chain Reactions . | . . Missiles Intercepted . | . . Alert | -11 -10 ------- Run | Scr Mat Peak Influence 30 | . 30 Average Influence 13 | . 13 Maximum Alert Level . | . . Low Security (%) 100 | . . Level 1 . | . . Level 2 . | . . Level 3 . | . . Level 4 . | . . Level 5 . | . . High Security . | . . Max Security . | . . Squads Dispatched 2 | . 2 Investigation 2 | . 2 Extermination . | . . Reinforcement . | . . Assault . | . . Garrison . | . . Intercept . | . . Construction Impeded . | . . Haulers Reinforced . | . . Stealth | -11 -10 --------- Run | Scr Mat Distress Signals 1 | . 1 Communications Jammed . | . . Distress Signals . | . . Times Spotted 12 | . 12 Peak Tracking Total 3 | . 3 Tactical Retreats 1 | . 1 Traps | -11 -10 ------- Run | Scr Mat Traps Triggered . | . . Indirectly . | . . Trap Hack Attempts . | . . Triggered . | . . Disarmed . | . . Reprogrammed . | . . Reused . | . . Traps Extracted . | . . Installed . | . . Triggered . | . . Machines | -11 -10 ---------- Run | Scr Mat Machines Disabled . | . . Max in Single Turn . | . . Machines Sabotaged . | . . Garrisons Compromised . | . . Overloaded Fab Kills . | . . Fab Network Shutdowns . | . . Hacking | -11 -10 --------- Run | Scr Mat Machines Accessed 2 | . 2 Terminals 2 | . 2 Fabricators . | . . Repair Stations . | . . Recycling Units . | . . Scanalyzers . | . . Garrison Access . | . . Total Hacks 2 | . 2 Successful 2 | . 2 Failed . | . . Catastrophic . | . . Database Lockouts . | . . Manual 2 | . 2 Terminals 2 | . 2 Fabricators . | . . Repair Stations . | . . Recycling Units . | . . Scanalyzers . | . . Garrison Access . | . . Terminal Hacks . | . . Fabricator Hacks . | . . Repair Station Hacks . | . . Recycling Unit Hacks . | . . Scanalyzer . | . . Garrison Access Hacks . | . . Unauthorized Hacks 4 | . 4 Terminals 2 | . 2 Search 2 | . 2 Fabricators . | . . Repair Stations . | . . Recycling Units . | . . Scanalyzers . | . . Garrison Access . | . . Data Cores Recovered . | . . Used . | . . Hacking Detections . | . . Full Trace Events . | . . Feedback Events . | . . Feedback Blocked . | . . Robot Schematics Acquired . | . . Robots Built . | . . Matter . | . . Time . | . . Total Robot Build Rating . | . . Part Schematics Acquired . | . . Parts Built . | . . Matter . | . . Time . | . . Total Part Build Rating . | . . Parts Repaired . | . . Time . | . . Parts Recycled . | . . Recycled Matter . | . . Retrieved Matter . | . . Retrieved Components . | . . Parts Scanalyzed . | . . Part Schematics Acquired . | . . Parts Damaged . | . . Bothacking | -11 -10 ------------ Run | Scr Mat Used RIF Installer . | . . Robots Hacked . | . . Non-combat . | . . Combat . | . . Robot Hacks Applied . | . . Relay Couplers Released . | . . Robots Rewired . | . . Allies Hacked . | . . Hacks Repelled . | . . Allies | -11 -10 -------- Run | Scr Mat Total Allies . | . . Largest Group . | . . Highest-Rated Group . | . . Highest-Rated Ally . | . . Total Orders . | . . Ally Attacks . | . . Total Damage . | . . Kills . | . . Allies Corrupted . | . . Allies Melted . | . . Intel | -11 -10 ------- Run | Scr Mat Robot Analysis Total . | . . Derelict Logs Recovered . | . . Drone Launches . | . . Drone Recoveries . | . . Exploration | -11 -10 ------------- Run | Scr Mat Turns Passed 444 | 4 440 Spaces Moved 191 | 1 190 Core . | . . Treads 191 | 1 190 Legs . | . . Wheels . | . . Hover . | . . Flight . | . . Fastest Speed 160 | 160 160 Average Speed 160 | 160 160 Slowest Speed 160 | 160 160 Overloaded Moves . | . . Propulsion Burnouts . | . . Robots Hopped . | . . Cave-ins Triggered . | . . Exploration Rate (%) 25 | 2 48 Regions Visited 1 Branch Regions . Pre-discovered Areas . | . . Known Exits Taken . | . . Unknown Exits Taken 1 | 1 . Scrap Searched . | . . Spaces Dug . | . . Terrain Destroyed . | . . Melee . | . . Projectile . | . . AOE . | . . Actions | -11 -10 --------- Run | Scr Mat Total 256 | 4 252 Wait 3 | . 3 Move 190 | . 190 Hop . | . . Pick Up 4 | . 4 Fast Attach 6 | . 6 Attach 4 | . 4 Detach 1 | . 1 Swap 3 | 2 1 Drop 4 | 2 2 Fire 41 | . 41 Melee . | . . Ram . | . . Kick . | . . Crush . | . . Escape Stasis . | . . Rewire . | . . Trap . | . . Miscellaneous . | . . Route ------- -11/Scrapyard -10/Materials History --------- Turn | Location | Event 5 | -11/Scrapyard | Discovered new exit (range 0) 5 | -11/Scrapyard | Entered Materials 305 | -10/Materials | Build established: Mutant 322 | -10/Materials | Discovered new exit (range 11) 422 | -10/Materials | Core integrity fell below 50% 428 | -10/Materials | Core integrity fell below 20% 445 | -10/Materials | Core destroyed Last Messages --------------- 00422_ Lesser Abomination feeds off Hungry Anomaly, taking Recalibrator, Wheel, Sensor Array, Signal Interpreter. 00422_ Beam Cannon destroyed. 00423_ Lesser Abomination feeds off Hungry Anomaly, taking ECM Suite. 00424_ Destroyed Ion Engine. 00424_ Destroyed Recalibrator. 00424_ K-01 Serf collects debris. 00428_ Beam Cannon destroyed. 00428_ K-01 Serf collects debris. 00434_ Lgt. Treads destroyed. 00435_ Ion Engine destroyed. 00436_ K-01 Serf collects debris. 00437_ Lesser Abomination destroyed. 00439_ K-01 Serf collects debris. 00439_ Acquired 39 matter. 00440_ Acquired 34 matter. 00443_ K-01 Serf collects debris. 00444_ Unstable Anomaly suddenly flashes brightly. 00445_ Violent ripples tear at the fabric of space around K-01 Serf. 00445_ Engulfed by violent ripples tearing at the fabric of space. Map ----- +----------------------------------------------------+ | #?#! T" # #?# ## """ # | | #?# "" # #?# ## "Y" # | | #?# # ### ## %=# | | ########+#########+## # # | | % # """ # | | + """ # | | ## """"" % % # """ # | | # """""""" % % # # | | + """ """ %% ## [ !# | | # % % = ## # | | #% % %% % ## = # | | # " """ """ ######## | | #%% """""""" """% #??????? | | # %% "" """ """n #??????? | | # % %#??????? | | ## % +??????? | | ?# % #??????? | | ?# ########### #??????? | | ?# #?????????# %% """ #??????? | | ?# #?????????# "T" ###????? | | ?# #?????????# k n #????? | | ?# #?????????# % #????? | | ?# #?????????# #????? | | ?# #?????????# #????? | | ?# #?????????# % ##+##+#####? | | ?# #?#######?#######% @# #? | | ?# #?# #???????# %%# #? | | ?# #?# #???????# u# #? | | ?# #?# #???????# # #? | | ?# #?# #???????# ###########? | | ## ### #???????# ??????????? | | # #???????+ ??????????? | | + #???????# ??????????? | | """ # #???????# ####?????????? | | "Y" # #???????# ?????????????? | | # #???????# ?????????????? | | # #???????# #?????????????? | | """ # #???????# ??????????????? | | """ #######???????#k??????????????? | | """ #????????????? ??????????????? | | """ #?????????????????????????????? | | """ #?????????????????????????????? | | #?????????????????????????????? | | #?????????????????????????????? | | #+## #?????????????????????????????? | | # #?????????????????????????????? | | #####?????????????????????????????? | | #?????????????????????????????????? | | #?????????????????????????????????? | | #?????????????????????????????????? | +----------------------------------------------------+ Best States ------------- Heat Dissipation 25 Energy Generation 10 Energy Capacity 250 Matter Stores 290 Matter Capacity 300 Sight Range 16 Terrain Scan Density 10 Resistance: KI 20 Resistance: TH 20 Resistance: EX 20 Resistance: EM 20 Resistance: I 20 Resistance: S 20 Resistance: P 20 Evasion (%) 40 Recoil Reduction 2 Item Schematics ----------------- None Robot Schematics ------------------ None Fabricated ------------ Nothing Alien Tech Used ----------------- None Achievements -------------- None Challenges ------------ None Game ------ Seed TrackerCoolingCannon Manual? 0 Play Time 00:10:51 Cumulative 177.2 hours Start 2019.10.29 @ 16:37:54 End 2019.10.29 @ 16:43:44 Sessions 1 Manual Loads 0 Difficulty Adventurer Special Mode Halloween2019/Abominations Game No. 110 Rogue -110 Adventurer 110 Explorer 0 Win Type - Total 1 Types 1/0/0/0/0/0/0 Lore% 61 Gallery% 67 Achievement% 51 Wizard Run 0 Options --------- ASCII 0 Keyboard 0 Movement Mouse Keybinds 0 Fullscreen 2 Font 12/Smallcaps Map View 83x54 Tactical HUD 1 Map Filters NONE Filters NONE Steam 1 RUN: 462ed9f9-cc8f-41a2-ba5c-9c3adf8cea86